fUST/lending_fUST_20251018
["ID","MTS","AMOUNT","RATE_DAILY","PERIOD"]
[391679499,1760725862631,-705.81,0.00035068,5]
[391679501,1760725862641,-500.0,0.00035068,5]
[391679503,1760725862650,-516.43,0.00035068,5]
[391679505,1760725862659,-500.0,0.00035068,2]
[391679507,1760725862669,-830.69,0.00035068,5]
[391679509,1760725862678,-1425.34,0.00035068,5]
[391679511,1760725862688,-683.45,0.00035068,3]
[391679513,1760725862697,-590.77,0.00035068,5]
[391679515,1760725862707,-622.67,0.00035068,5]
[391679517,1760725862716,-562.64,0.00035068,5]
[391679519,1760725862731,-1219.05,0.00035068,5]
[391679521,1760725862741,-716.27,0.00035068,5]
[391679523,1760725862750,-180.0012564,0.00035068,5]
[391679525,1760725862759,-647.06,0.00035068,5]
[391679527,1760725862768,-500.79,0.00035068,5]
[391679529,1760725862777,-500.0,0.00035068,5]
[391679530,1760725862786,-1101.69420531,0.000351,2]
[391679532,1760725862795,-160.06940735,0.000351,2]
[391679534,1760725862806,-1037.02755595,0.000351,2]
[391679537,1760725862815,-604.21939043,0.000351,2]
[391679539,1760725862825,-474.28829542,0.000351,2]
[391679541,1760725862834,-240.748734,0.00035118,3]
[391679542,1760725862844,-151.591364,0.00035118,3]
[391679544,1760725862853,-1267.33,0.00035144,60]
[391679546,1760725862863,-151.0,0.000352,17]
[391679548,1760725862872,-1267.33,0.00035244,60]
[391679550,1760725862881,-447.44655504,0.00035329,30]
[391679552,1760725862891,-653.4,0.00035342,5]
[391679554,1760725862900,-735.28,0.00035342,5]
[391679556,1760725862909,-936.96,0.00035342,5]
[391679558,1760725862918,-519.52,0.00035342,5]
[391679560,1760725862927,-274.32,0.00035342,5]
[391679562,1760725862937,-500.0,0.00035342,5]
[391679564,1760725862946,-500.0,0.00035342,5]
[391679566,1760725862956,-539.7,0.00035342,5]
[391679568,1760725862966,-545.0,0.00035342,5]
[391679570,1760725862975,-703.96,0.00035342,5]
[391679573,1760725862984,-741.3,0.00035342,5]
[391679575,1760725862994,-1917.86,0.00035342,2]
[391679577,1760725863003,-500.0,0.00035342,5]
[391679579,1760725863014,-500.0,0.00035342,5]
[391679581,1760725863023,-878.46,0.00035342,5]
[391679583,1760725863033,-500.0,0.00035342,5]
[391679585,1760725863042,-705.81,0.00035342,5]
[391679587,1760725863051,-500.0,0.00035342,5]
[391679589,1760725863061,-516.43,0.00035342,5]
[391679591,1760725863070,-379.34,0.00035342,2]
[391679593,1760725863080,-830.69,0.00035342,5]
[391679595,1760725863089,-1425.34,0.00035342,5]
[391679597,1760725863099,-683.45,0.00035342,3]
[391679599,1760725863108,-590.77,0.00035342,5]
[391679600,1760725863117,-622.67,0.00035342,5]
[391679603,1760725863128,-562.64,0.00035342,5]
[391679605,1760725863138,-1219.05,0.00035342,5]
[391679607,1760725863148,-716.27,0.00035342,5]
[391679609,1760725863157,-647.06,0.00035342,5]
[391679610,1760725863166,-500.79,0.00035342,5]
[391679612,1760725863175,-215.91,0.00035342,5]
[391679614,1760725863185,-1267.33,0.00035344,60]
[391679616,1760725863194,-522.16988224,0.00035405,2]
[391679618,1760725863203,-1267.33,0.00035444,60]
[391679620,1760725863213,-1108.09988183,0.0003547,2]
[391679622,1760725863222,-1101.69420531,0.000355,2]
[391679624,1760725863231,-160.06940735,0.000355,2]
[391679626,1760725863244,-1037.02755595,0.000355,2]
[391679628,1760725863253,-604.21939043,0.000355,2]
[391679630,1760725863262,-474.28829542,0.000355,2]
[391679632,1760725863271,-1267.33,0.00035544,60]
[391679634,1760725863282,-653.4,0.00035616,5]
[391679636,1760725863292,-735.28,0.00035616,5]
[391679638,1760725863301,-936.96,0.00035616,5]
[391679640,1760725863311,-519.52,0.00035616,5]
[391679642,1760725863321,-1098.65816999,0.00035616,2]
[391679644,1760725863331,-500.0,0.00035616,5]
[391679646,1760725863340,-500.0,0.00035616,5]
[391679648,1760725863349,-539.7,0.00035616,5]
[391679650,1760725863359,-545.0,0.00035616,5]
[391679652,1760725863368,-703.96,0.00035616,5]
[391679654,1760725863377,-741.3,0.00035616,5]
[391679656,1760725863387,-1917.86,0.00035616,2]
[391679658,1760725863396,-500.0,0.00035616,5]
[391679660,1760725863405,-500.0,0.00035616,5]
[391679662,1760725863415,-878.46,0.00035616,5]
[391679664,1760725863425,-500.0,0.00035616,5]
[391679666,1760725863434,-705.81,0.00035616,5]
[391679668,1760725863444,-279.49,0.00035616,5]
[391679670,1760725863454,-516.43,0.00035616,5]
[391679672,1760725863463,-830.69,0.00035616,5]
[391679674,1760725863472,-1425.34,0.00035616,5]
[391679676,1760725863481,-683.45,0.00035616,3]
[391679678,1760725863491,-590.77,0.00035616,5]
[391679680,1760725863500,-622.67,0.00035616,5]
[391679682,1760725863509,-562.64,0.00035616,5]
[391679684,1760725863520,-1219.05,0.00035616,5]
[391679686,1760725863529,-716.27,0.00035616,5]
[391679688,1760725863538,-647.06,0.00035616,5]
[391679690,1760725863547,-500.79,0.00035616,5]
[391679692,1760725863557,-1267.33,0.00035644,60]
[391679694,1760725863566,-1000.0,0.00035714,14]
[391679696,1760725863575,-2841.79,0.00035728,120]
[391679698,1760725863584,-1267.33,0.00035744,60]
[391679699,1760725863593,-5000.0,0.00035762,4]
[391679702,1760725863603,-12948.07,0.000358,14]
[391679704,1760725863613,-1267.33,0.00035844,60]
[391679705,1760725863622,-653.4,0.0003589,5]
[391679707,1760725863631,-735.28,0.0003589,5]
[391679709,1760725863642,-936.96,0.0003589,5]
[391679711,1760725863651,-519.52,0.0003589,5]
[391679713,1760725863660,-500.0,0.0003589,5]
[391679715,1760725863669,-500.0,0.0003589,5]
[391679717,1760725863684,-539.7,0.0003589,5]
[391679719,1760725863693,-545.0,0.0003589,5]
[391679721,1760725863705,-703.96,0.0003589,5]
[391679723,1760725863715,-741.3,0.0003589,5]
[391679726,1760725863725,-1917.86,0.0003589,2]
[391679727,1760725863735,-224.62645604,0.0003589,5]
[391679730,1760725863746,-500.0,0.0003589,5]
[391679732,1760725863756,-878.46,0.0003589,5]
[391679734,1760725863766,-500.0,0.0003589,5]
[391679736,1760725863775,-705.81,0.0003589,5]
[391679738,1760725863785,-516.43,0.0003589,5]
[391679739,1760725863794,-830.69,0.0003589,5]
[391679741,1760725863803,-1425.34,0.0003589,5]
[391679743,1760725863812,-683.45,0.0003589,3]
[391679745,1760725863822,-590.77,0.0003589,5]
[391679747,1760725863831,-622.67,0.0003589,5]
[391679749,1760725863840,-84.71455316,0.0003589,5]
[391679775,1760725864078,-336.19306354,0.0003589,5]
[391679789,1760725864198,-6e-08,0.0003589,5]
[391679828,1760725864579,150.0,0.0001845,2]
[391680964,1760725977846,216.1072647,0.00026055,19]
[391680965,1760726012131,478.07913,0.00013699,2]
[391680966,1760726012347,478.07913,0.00020187,2]
[391680967,1760726012571,478.07913,0.00026676,2]
[391680970,1760726115026,402.69031254,0.00027,2]
[391680977,1760726224063,417.15472785,0.00027,2]
[391680978,1760726234023,150.0,0.00025205,2]
[391680979,1760726234436,172.5,0.00025805,2]
[391680980,1760726235778,195.0,0.00026405,2]
[391680987,1760726735914,402.69031254,0.00027,2]
[391680988,1760726741926,198.74335244,0.00026905,2]
[391680989,1760726753863,2720.7882868,0.00026889,2]
[391680990,1760726812076,-1045.280731,0.00027001,2]
[391680991,1760726812098,-217.5,0.00027005,2]
[391680992,1760726812118,-5519.64818579,0.00027045,2]
[391680993,1760726813975,-613.9,0.00027045,2]
[391680994,1760726816068,-641.979412,0.00027045,2]
[391680995,1760726817698,-164.72928883,0.00027045,2]
[391680996,1760726818119,-261.23304377,0.00027045,2]
[391680997,1760726820650,-650.0,0.00027045,2]
[391680998,1760726822790,-921.7521148,0.00027045,2]
[391680999,1760726824548,-300.0,0.00027044,2]
[391681000,1760726824570,-95.21960033,0.00027045,2]
[391681001,1760726827570,-200.0,0.00027045,2]
[391681002,1760726829683,-257.83372832,0.00027045,2]
[391681003,1760726839767,921.7521148,0.00027,2]
[391681004,1760726848959,290.48523331,0.00027,2]
[391681005,1760726852457,150.0,0.00025205,2]
[391681006,1760726852913,172.5,0.00025805,2]
[391681007,1760726853354,195.0,0.00026405,2]
[391681008,1760726853766,217.5,0.00027005,2]
[391681009,1760726861855,150.0,0.00022451,2]
[391681010,1760726893163,8949.688633,0.00026214,2]
[391681011,1760727003812,150.0,0.00021918,7]
[391681039,1760727032494,-462.228,0.00027044,2]
[391681045,1760727032550,-737.772,0.00027044,2]
[391681047,1760727032560,-267.740651,0.00027044,2]
[391681053,1760727032605,-32.259349,0.00027044,2]
[391681055,1760727032615,-307.75602856,0.00027044,2]
[391681057,1760727032626,-892.24397144,0.00027044,2]
[391681059,1760727032636,-802.9791283,0.00027045,2]
[391681253,1760727038458,-23596.45380996,0.00027045,2]
[391681255,1760727038467,-500.0,0.00027073,2]
[391681257,1760727038476,-500.0,0.00027073,2]
[391681260,1760727038487,-500.0,0.00027073,2]
[391681261,1760727038497,-500.0,0.00027073,2]
[391681262,1760727038505,-280.07678655,0.00027073,2]
[391681264,1760727038515,-500.0,0.00027073,2]
[391681266,1760727038524,-500.0,0.00027073,2]
[391681267,1760727038535,-500.0,0.00027073,2]
[391681268,1760727038544,-1007.0748155,0.00027123,3]
[391681269,1760727038553,-666.0,0.00027317,2]
[391681270,1760727038563,-150.0,0.00027518,2]
[391681271,1760727038575,-3965.30177712,0.00027585,2]
[391681272,1760727038588,-23682.04200238,0.00027585,2]
[391681273,1760727038599,-1809.90404173,0.00027585,2]
[391681328,1760727040736,-20.34165726,0.00027585,2]
[391681332,1760727040747,-20522.41052151,0.00027585,2]
[391681336,1760727040757,-300.0,0.00027585,30]
[391681340,1760727040767,-300.0,0.00027585,30]
[391681343,1760727040776,-300.0,0.00027585,30]
[391681346,1760727040785,-300.0,0.00027585,30]
[391681349,1760727040796,-300.0,0.00027585,30]
[391681351,1760727040805,-300.0,0.00027585,30]
[391681353,1760727040814,-300.0,0.00027585,30]
[391681355,1760727040823,-300.0,0.00027585,30]
[391681357,1760727040833,-300.0,0.00027585,30]
[391681359,1760727040842,-300.0,0.00027585,30]
[391681361,1760727040852,-300.0,0.00027585,30]
[391681364,1760727040862,-300.0,0.00027585,30]
[391681366,1760727040872,-300.0,0.00027585,30]
[391681368,1760727040882,-300.0,0.00027585,30]
[391681370,1760727040892,-300.0,0.00027585,30]
[391681372,1760727040901,-240.0,0.00027605,2]
[391681374,1760727040910,-248.9846705,0.0002762,2]
[391681376,1760727040920,-228.07788364,0.0002762,2]
[391681378,1760727040928,-500.0,0.00027621,5]
[391681379,1760727040939,-1000.0,0.00027621,5]
[391681381,1760727040948,-306.77318573,0.00027621,5]
[391681383,1760727040957,-1000.0,0.00027621,5]
[391681385,1760727040966,-1000.0,0.00027621,5]
[391681388,1760727040977,-600.0,0.00028136,30]
[391681390,1760727040986,-1000.0,0.00028168,5]
[391681391,1760727040996,-1017.8156044,0.00028168,5]
[391681393,1760727041005,-999.94951459,0.00028168,5]
[391681395,1760727041014,-262.5,0.00028205,2]
[391681397,1760727041023,-500.0,0.00028273,5]
[391681399,1760727041032,-500.0,0.00028273,5]
[391681401,1760727041041,-500.0,0.00028273,5]
[391681403,1760727041051,-500.0,0.00028273,5]
[391681405,1760727041060,-500.0,0.00028273,5]
[391681408,1760727041070,-500.0,0.00028273,2]
[391681409,1760727041079,-285.95,0.00028448,7]
[391681411,1760727041089,-373.28030585,0.00028467,5]
[391681413,1760727041098,-500.0,0.00028473,5]
[391681415,1760727041107,-500.0,0.00028473,5]
[391681417,1760727041116,-500.0,0.00028473,5]
[391681419,1760727041125,-500.0,0.00028473,5]
[391681421,1760727041134,-500.0,0.00028473,5]
[391681423,1760727041143,-163.68,0.00028549,20]
[391681425,1760727041153,-500.0,0.00028573,5]
[391681427,1760727041162,-285.95,0.00028722,8]
[391681430,1760727041171,-273.97,0.00028733,10]
[391681432,1760727041180,-1419.2093367,0.00028743,2]
[391681433,1760727041190,-285.0,0.00028805,2]
[391681436,1760727041200,-1000.0,0.00028821,5]
[391681437,1760727041209,-1011.33957118,0.00028821,5]
[391681439,1760727041218,-1000.0,0.00028821,5]
[391681441,1760727041227,-1000.0,0.00028821,5]
[391681443,1760727041237,-1000.0,0.00028821,5]
[391681445,1760727041246,-1040.48924573,0.00028821,2]
[391681447,1760727041255,-427.73,0.000289,2]
[391681449,1760727041265,-285.95,0.00028996,9]
[391681451,1760727041275,-1163.33,0.00029,2]
[391681453,1760727041284,-2248.60286994,0.00029001,2]
[391681455,1760727041293,-501.88854632,0.00029021,5]
[391681457,1760727041303,-1000.0,0.00029021,5]
[391681459,1760727041312,-502.57658769,0.00029021,5]
[391681461,1760727041321,-1000.0,0.00029021,5]
[391681463,1760727041330,-621.2588575,0.00029121,5]
[391681465,1760727041339,-1163.33,0.00029174,2]
[391681467,1760727041349,-420.0,0.00029236,2]
[391681469,1760727041358,-285.95,0.0002927,10]
[391681471,1760727041368,-1009.0,0.00029365,2]
[391681473,1760727041377,-1012.4240118,0.00029368,5]
[391681475,1760727041386,-1500.0,0.00029368,5]
[391681477,1760727041395,-427.03514338,0.00029368,5]
[391681479,1760727041405,-307.5,0.00029405,2]
[391681481,1760727041414,-285.95,0.00029544,11]
[391681483,1760727041423,-1500.0,0.00029568,5]
[391681485,1760727041432,-1000.0,0.00029568,5]
[391681487,1760727041442,-395.93,0.00029573,5]
[391681489,1760727041451,-285.95,0.00029818,12]
[391681491,1760727041460,-154.724515,0.00029942,20]
[391681493,1760727041469,-330.0,0.00030005,2]
[391681495,1760727041478,-285.95,0.00030092,13]
[391681497,1760727041487,-2000.0,0.00030116,5]
[391681499,1760727041496,-500.0,0.00030136,5]
[391681501,1760727041506,-500.0,0.00030136,5]
[391681503,1760727041516,-274.32,0.00030136,5]
[391681505,1760727041526,-500.0,0.00030136,5]
[391681507,1760727041535,-500.0,0.00030136,5]
[391681509,1760727041544,-500.0,0.00030136,5]
[391681511,1760727041554,-500.0,0.00030136,5]
[391681513,1760727041563,-500.0,0.00030136,5]
[391681515,1760727041573,-500.0,0.00030136,5]
[391681517,1760727041585,-500.0,0.00030136,5]
[391681519,1760727041594,-500.0,0.00030136,5]
[391681521,1760727041603,-500.0,0.00030136,5]
[391681523,1760727041612,-500.0,0.00030136,5]
[391681525,1760727041622,-500.0,0.00030136,5]
[391681527,1760727041633,-500.0,0.00030136,5]
[391681529,1760727041642,-500.0,0.00030136,5]
[391681531,1760727041654,-500.0,0.00030136,5]
[391681533,1760727041663,-500.0,0.00030136,5]
[391681535,1760727041672,-500.0,0.00030136,2]
[391681537,1760727041682,-265.23841133,0.00030136,5]
[391681539,1760727041691,-500.0,0.00030136,5]
[391681541,1760727041699,-500.0,0.00030136,5]
[391681543,1760727041709,-500.0,0.00030136,5]
[391681545,1760727041718,-500.0,0.00030136,5]
[391681547,1760727041727,-500.0,0.00030136,5]
[391681549,1760727041737,-500.0,0.00030136,2]
[391681551,1760727041746,-500.0,0.00030136,5]
[391681553,1760727041755,-500.0,0.00030136,5]
[391681555,1760727041765,-500.0,0.00030136,3]
[391681557,1760727041775,-500.0,0.00030136,5]
[391681559,1760727041784,-501.35358605,0.00030136,5]
[391681561,1760727041793,-500.0,0.00030136,5]
[391681563,1760727041802,-500.0,0.00030136,5]
[391681564,1760727041811,-500.0,0.00030136,5]
[391681566,1760727041821,-500.0,0.00030136,5]
[391681568,1760727041830,-577.20155333,0.00030136,5]
[391681570,1760727041839,-500.0,0.00030136,5]
[391681572,1760727041848,-500.0,0.00030136,5]
[391681574,1760727041857,-500.0,0.00030136,5]
[391681576,1760727041866,-500.0,0.00030136,5]
[391681578,1760727041875,-500.0,0.00030136,5]
[391681580,1760727041885,-606.781992,0.00030137,120]
[391681583,1760727041895,-500.0,0.00030137,2]
[391681584,1760727041904,-500.0,0.00030137,2]
[391681587,1760727041913,-500.0,0.00030137,2]
[391681589,1760727041922,-500.0,0.00030137,2]
[391681590,1760727041931,-500.0,0.00030137,2]
[391681592,1760727041940,-500.0,0.00030137,2]
[391681594,1760727041950,-271.07115041,0.00030137,2]
[391681596,1760727041959,-500.0,0.00030137,2]
[391681598,1760727041968,-500.0,0.00030137,2]
[391681600,1760727041977,-500.0,0.00030137,2]
[391681602,1760727041986,-500.0,0.00030173,5]
[391681604,1760727041995,-503.91128656,0.00030173,5]
[391681606,1760727042005,-500.0,0.00030173,5]
[391681608,1760727042015,-506.96873183,0.00030173,5]
[391681610,1760727042025,-300.0,0.00030258,7]
[391681611,1760727042035,-285.95,0.00030366,14]
[391681612,1760727042044,-772.98,0.0003039,3]
[391681613,1760727042053,-2248.60286994,0.000304,2]
[391681614,1760727042063,-1999.0,0.00030409,2]
[391681615,1760727042072,-500.0,0.0003041,5]
[391681616,1760727042081,-500.0,0.0003041,5]
[391681617,1760727042090,-500.0,0.0003041,5]
[391681618,1760727042099,-500.0,0.0003041,5]
[391681619,1760727042109,-500.0,0.0003041,5]
[391681620,1760727042118,-500.0,0.0003041,5]
[391681621,1760727042127,-500.0,0.0003041,5]
[391681622,1760727042136,-500.0,0.0003041,5]
[391681623,1760727042145,-500.0,0.0003041,5]
[391681624,1760727042154,-500.0,0.0003041,5]
[391681625,1760727042164,-500.0,0.0003041,5]
[391681626,1760727042173,-500.0,0.0003041,5]
[391681627,1760727042182,-500.0,0.0003041,5]
[391681628,1760727042191,-500.0,0.0003041,5]
[391681629,1760727042200,-500.0,0.0003041,5]
[391681630,1760727042209,-500.0,0.0003041,5]
[391681631,1760727042219,-500.0,0.0003041,2]
[391681632,1760727042228,-500.0,0.0003041,5]
[391681633,1760727042237,-500.0,0.0003041,5]
[391681634,1760727042246,-500.0,0.0003041,5]
[391681635,1760727042256,-500.0,0.0003041,5]
[391681636,1760727042266,-500.0,0.0003041,2]
[391681637,1760727042276,-500.0,0.0003041,5]
[391681638,1760727042286,-500.0,0.0003041,3]
[391681639,1760727042295,-500.0,0.0003041,5]
[391681640,1760727042304,-500.0,0.0003041,5]
[391681641,1760727042313,-500.0,0.0003041,5]
[391681653,1760727042449,-500.0,0.0003041,5]
[391681655,1760727042459,-180.0012564,0.0003041,5]
[391681657,1760727042468,-500.0,0.0003041,5]
[391681659,1760727042477,-500.0,0.0003041,5]
[391681661,1760727042486,-500.0,0.0003041,5]
[391681663,1760727042495,-345.5386911,0.0003041,5]
[391681665,1760727042504,-500.0,0.0003041,5]
[391681667,1760727042514,-427.73,0.000305,2]
[391681669,1760727042523,-352.5,0.00030605,2]
[391681671,1760727042532,-154.724515,0.00030613,20]
[391681673,1760727042541,-155.275836,0.00030613,20]
[391681675,1760727042551,-437.42950146,0.00030636,2]
[391681677,1760727042560,-227.17092511,0.00030636,2]
[391681679,1760727042569,-92098.01112173,0.00030637,2]
[391681681,1760727042584,-285.95,0.0003064,15]
[391681683,1760727042593,-500.0,0.00030664,5]
[391681685,1760727042603,-500.0,0.00030684,5]
[391681687,1760727042613,-500.0,0.00030684,5]
[391681689,1760727042623,-500.0,0.00030684,5]
[391681691,1760727042632,-500.0,0.00030684,5]
[391681693,1760727042641,-224.62645604,0.00030684,5]
[391681695,1760727042652,-500.0,0.00030684,5]
[391681697,1760727042662,-500.0,0.00030684,5]
[391681699,1760727042671,-500.0,0.00030684,5]
[391681701,1760727042681,-500.0,0.00030684,5]
[391681703,1760727042690,-500.0,0.00030684,5]
[391681705,1760727042700,-500.0,0.00030684,5]
[391681707,1760727042709,-500.0,0.00030684,5]
[391681709,1760727042719,-500.0,0.00030684,5]
[391681711,1760727042728,-500.0,0.00030684,5]
[391681713,1760727042738,-500.0,0.00030684,5]
[391681715,1760727042747,-500.0,0.00030684,5]
[391681717,1760727042757,-500.0,0.00030684,2]
[391681719,1760727042768,-500.0,0.00030684,5]
[391681721,1760727042777,-500.0,0.00030684,5]
[391681723,1760727042786,-279.49,0.00030684,5]
[391681725,1760727042795,-500.0,0.00030684,5]
[391681727,1760727042805,-379.34,0.00030684,2]
[391681729,1760727042814,-500.0,0.00030684,5]
[391681731,1760727042823,-500.0,0.00030684,3]
[391681733,1760727042832,-500.0,0.00030684,5]
[391681735,1760727042842,-500.0,0.00030684,5]
[391681737,1760727042851,-500.0,0.00030684,5]
[391681739,1760727042860,-500.0,0.00030684,5]
[391681741,1760727042869,-500.0,0.00030684,5]
[391681743,1760727042878,-215.91,0.00030684,5]
[391681746,1760727042888,-500.0,0.00030684,5]
[391681747,1760727042897,-500.0,0.00030684,5]
[391681750,1760727042907,-1000.0,0.00030721,5]
[391681751,1760727042916,-183.70084116,0.00030721,5]
[391681753,1760727042925,-500.0,0.00030737,5]
[391681756,1760727042935,-500.0,0.00030737,5]
[391681757,1760727042944,-500.0,0.00030737,5]
[391681759,1760727042954,-500.0,0.00030737,5]
[391681761,1760727042964,-500.0,0.00030737,5]
[391681763,1760727042976,-500.0,0.00030737,5]
[391681766,1760727042986,-506.58673721,0.00030737,5]
[391681769,1760727042995,-2199.1792966,0.00030858,2]
[391681771,1760727043004,-285.95,0.00030914,16]
[391681773,1760727043015,-2248.60286994,0.00030938,2]
[391681776,1760727043025,-2248.60286994,0.00030948,2]
[391681780,1760727043034,-720.0,0.00030949,30]
[391681782,1760727043043,-500.0,0.00030958,5]
[391681784,1760727043052,-500.0,0.00030958,5]
[391681786,1760727043061,-500.0,0.00030958,5]
[391681788,1760727043071,-500.0,0.00030958,5]
[391681789,1760727043079,-500.0,0.00030958,5]
[391681791,1760727043088,-500.0,0.00030958,5]
[391681793,1760727043098,-500.0,0.00030958,5]
[391681796,1760727043107,-500.0,0.00030958,5]
[391681798,1760727043117,-500.0,0.00030958,5]
[391681801,1760727043126,-500.0,0.00030958,5]
[391681804,1760727043135,-500.0,0.00030958,5]
[391681808,1760727043144,-500.0,0.00030958,5]
[391681809,1760727043154,-500.0,0.00030958,5]
[391681813,1760727043164,-500.0,0.00030958,5]
[391681816,1760727043174,-500.0,0.00030958,5]
[391681817,1760727043183,-500.0,0.00030958,2]
[391681819,1760727043192,-500.0,0.00030958,5]
[391681821,1760727043200,-500.0,0.00030958,5]
[391681823,1760727043209,-500.0,0.00030958,5]
[391681825,1760727043219,-500.0,0.00030958,5]
[391681827,1760727043229,-500.0,0.00030958,3]
[391681829,1760727043238,-500.0,0.00030958,5]
[391681831,1760727043248,-500.0,0.00030958,5]
[391681834,1760727043257,-500.0,0.00030958,5]
[391681837,1760727043270,-500.0,0.00030958,5]
[391681841,1760727043279,-500.0,0.00030958,5]
[391681846,1760727043289,-500.0,0.00030958,5]
[391681849,1760727043298,-345.83566405,0.00030958,5]
[391681853,1760727043308,-500.0,0.00031011,5]
[391681857,1760727043317,-500.0,0.00031011,5]
[391681859,1760727043326,-500.0,0.00031011,5]
[391681863,1760727043336,-508.43397608,0.00031011,5]
[391681866,1760727043346,-150.0,0.00031173,5]
[391681869,1760727043355,-150.0,0.00031173,5]
[391681871,1760727043364,-285.95,0.00031188,17]
[391681874,1760727043373,-1999.0,0.00031231,4]
[391681877,1760727043383,-500.0,0.00031232,5]
[391681880,1760727043392,-500.0,0.00031232,5]
[391681883,1760727043401,-500.0,0.00031232,5]
[391681886,1760727043410,-500.0,0.00031232,5]
[391681890,1760727043420,-500.0,0.00031232,5]
[391681893,1760727043430,-500.0,0.00031232,5]
[391681895,1760727043440,-597.6,0.00031232,5]
[391681898,1760727043450,-600.59168262,0.00031232,5]
[391681901,1760727043459,-500.0,0.00031232,5]
[391681904,1760727043468,-500.0,0.00031232,5]
[391681907,1760727043477,-500.0,0.00031232,5]
[391681910,1760727043487,-289.36698807,0.00031232,5]
[391681913,1760727043497,-500.0,0.00031232,5]
[391681916,1760727043506,-500.0,0.00031232,5]
[391681919,1760727043515,-500.0,0.00031232,5]
[391681922,1760727043524,-500.0,0.00031232,2]
[391681925,1760727043533,-500.0,0.00031232,5]
[391681928,1760727043542,-500.0,0.00031232,5]
[391681931,1760727043552,-500.0,0.00031232,5]
[391681934,1760727043561,-500.0,0.00031232,5]
[391681938,1760727043571,-500.0,0.00031232,3]
[391681940,1760727043585,-500.0,0.00031232,5]
[391681943,1760727043594,-500.0,0.00031232,5]
[391681946,1760727043603,-500.0,0.00031232,5]
[391681949,1760727043612,-500.0,0.00031232,5]
[391681952,1760727043622,-500.0,0.00031232,5]
[391681956,1760727043632,-500.0,0.00031232,5]
[391681958,1760727043642,-2248.60286994,0.00031265,2]
[391681962,1760727043653,-2248.60286994,0.00031277,2]
[391681965,1760727043662,-154.724515,0.00031284,20]
[391681968,1760727043672,-155.275836,0.00031284,20]
[391681971,1760727043681,-155.403992,0.00031284,20]
[391681974,1760727043691,-500.0,0.00031285,5]
[391681977,1760727043700,-500.0,0.00031285,5]
[391681980,1760727043710,-500.0,0.00031285,5]
[391681983,1760727043720,-982.0,0.00031287,2]
[391681986,1760727043729,-631.0,0.00031287,2]
[391681989,1760727043738,-2162.0,0.00031287,2]
[391681992,1760727043747,-225.53,0.0003138,7]
[391681995,1760727043757,-285.95,0.00031462,18]
[391681998,1760727043768,-500.0,0.00031506,5]
[391682001,1760727043777,-225.17565192,0.00031506,5]
[391682004,1760727043786,-198.51364551,0.00031506,5]
[391682007,1760727043796,-500.0,0.00031506,5]
[391682010,1760727043804,-500.0,0.00031506,5]
[391682013,1760727043814,-598.79,0.00031506,5]
[391682016,1760727043823,-500.0,0.00031506,5]